bitfinex-derivatives/quotes_BTCF0:USTF0_20251215
["timestamp","ask_amount","ask_price","bid_price","bid_amount"]
[1765788365074,0.06155683,89918.0,89917.0,0.03357]
[1765788365281,0.06155683,89918.0,89917.0,0.002]
[1765788366084,0.06155683,89918.0,89917.0,0.001]
[1765788366375,0.06139,89910.0,89909.0,0.06259683]
[1765788369882,0.06139,89910.0,89909.0,0.06359683]
[1765788370290,0.08121,89916.0,89915.0,0.06243]
[1765788372784,0.08121,89916.0,89915.0,0.06343]
[1765788374282,0.08121,89916.0,89915.0,0.06243]
[1765788376684,0.08221,89916.0,89915.0,0.06243]
[1765788377680,0.08121,89916.0,89915.0,0.06343]
[1765788383097,0.14121413,89916.0,89915.0,0.06343]
[1765788384089,0.08121,89916.0,89915.0,0.06343]
[1765788385791,0.08121,89916.0,89915.0,0.03257]
[1765788386397,0.08121,89916.0,89915.0,0.06343]
[1765788386599,0.08121,89916.0,89915.0,0.06243]
[1765788386797,0.08121,89916.0,89915.0,0.06343]
[1765788388194,0.08121,89916.0,89915.0,0.06243]
[1765788391592,0.08121,89916.0,89915.0,0.06343]
[1765788391991,0.08121,89916.0,89915.0,0.06443]
[1765788392194,0.08121,89916.0,89915.0,0.06343]
[1765788392498,0.08121,89916.0,89915.0,0.06243]
[1765788394892,0.08121,89916.0,89915.0,0.06343]
[1765788395689,0.08121,89916.0,89915.0,0.06243]
[1765788396094,0.08221,89916.0,89915.0,0.06243]
[1765788396496,0.08121,89916.0,89915.0,0.06243]
[1765788397304,0.08121,89916.0,89915.0,0.06343]
[1765788398097,0.08121,89916.0,89915.0,0.06243]
[1765788399100,0.08121,89916.0,89915.0,0.06343]
[1765788400605,0.08121,89916.0,89915.0,0.06243]
[1765788400800,0.08121,89916.0,89915.0,0.06343]
[1765788401507,0.08121,89916.0,89915.0,0.06243]
[1765788401708,0.08121,89916.0,89915.0,0.06343]
[1765788403309,0.08121,89916.0,89915.0,0.06243]
[1765788403614,0.08121,89916.0,89915.0,0.03157]
[1765788404002,0.08121,89916.0,89915.0,0.05944]
[1765788404816,0.08621,89916.0,89915.0,0.05944]
[1765788405114,0.09021,89916.0,89915.0,0.05944]
[1765788407310,0.08521,89916.0,89915.0,0.05944]
[1765788407610,0.09021,89916.0,89915.0,0.05944]
[1765788410318,0.08521,89916.0,89915.0,0.05944]
[1765788410617,0.09021,89916.0,89915.0,0.05944]
[1765788410812,0.08621,89916.0,89915.0,0.05944]
[1765788411111,0.08221,89916.0,89915.0,0.05944]
[1765788414803,0.44301,89916.0,89915.0,0.05944]
[1765788415010,0.44201,89916.0,89915.0,0.05944]
[1765788415213,0.44301,89916.0,89915.0,0.05944]
[1765788416518,0.44201,89916.0,89915.0,0.05944]
[1765788416718,0.44301,89916.0,89915.0,0.05944]
[1765788417316,0.44201,89916.0,89915.0,0.05944]
[1765788417517,0.44301,89916.0,89915.0,0.05944]
[1765788419405,0.44201,89916.0,89915.0,0.05944]
[1765788419605,0.44301,89916.0,89915.0,0.05944]
[1765788422615,0.44201,89916.0,89915.0,0.05944]
[1765788422807,0.44301,89916.0,89915.0,0.05944]
[1765788423717,0.44201,89916.0,89915.0,0.05944]
[1765788423909,0.44701,89916.0,89915.0,0.05944]
[1765788424315,0.44201,89916.0,89915.0,0.05944]
[1765788424517,0.44301,89916.0,89915.0,0.05944]
[1765788425917,0.44201,89916.0,89915.0,0.05944]
[1765788426117,0.44301,89916.0,89915.0,0.05944]
[1765788426519,0.44201,89916.0,89915.0,0.05944]
[1765788426720,0.44301,89916.0,89915.0,0.05944]
[1765788427112,0.44201,89916.0,89915.0,0.05944]
[1765788427314,0.44301,89916.0,89915.0,0.05944]
[1765788430021,0.45101,89916.0,89915.0,0.05944]
[1765788430518,0.44601,89916.0,89915.0,0.05944]
[1765788430727,0.44701,89916.0,89915.0,0.05944]
[1765788431026,0.07555,89910.0,89909.0,0.00016683]
[1765788431218,0.07555,89910.0,89909.0,0.05595683]
[1765788433029,0.07555,89910.0,89909.0,0.05695683]
[1765788435820,0.07555,89910.0,89909.0,0.05595683]
[1765788436020,0.07555,89910.0,89909.0,0.05695683]
[1765788437621,0.07555,89910.0,89909.0,0.05595683]
[1765788448429,0.15565558,89910.0,89909.0,0.05595683]
[1765788453237,0.07555,89910.0,89909.0,0.00016683]
[1765788453944,0.05503,89893.0,89892.0,0.41554]
[1765788454142,0.0661556,89884.0,89883.0,0.14556]
[1765788454334,0.4269556,89884.0,89883.0,0.02706]
[1765788454643,0.4269556,89884.0,89883.0,0.05474]
[1765788455441,0.4269556,89884.0,89883.0,0.02706]
[1765788455645,0.05503,89876.0,89875.0,0.05490683]
[1765788457248,0.05503,89876.0,89875.0,0.06090683]
[1765788458047,0.47582342,89876.0,89875.0,0.00616683]
[1765788458240,0.41583,89876.0,89875.0,0.00616683]
[1765788459850,0.41583,89876.0,89875.0,0.03322683]
[1765788460946,0.41583,89876.0,89875.0,0.06090683]
[1765788461343,0.05503,89876.0,89875.0,0.06090683]
[1765788481253,0.11487376,89876.0,89875.0,0.06090683]
[1765788482167,0.05503,89876.0,89875.0,0.06090683]
[1765788484357,0.41583,89876.0,89875.0,0.06090683]
[1765788486254,0.49590236,89876.0,89875.0,0.06090683]
[1765788487262,0.41583,89876.0,89875.0,0.06090683]
[1765788490671,0.13622892,89882.0,89878.0,0.02982]
[1765788490965,0.13622892,89882.0,89881.0,0.05813]
[1765788491170,0.0561,89882.0,89881.0,0.05813]
[1765788491864,0.0561,89882.0,89881.0,0.02831]
[1765788492564,0.0561,89882.0,89881.0,0.06013]
[1765788493356,0.0561,89882.0,89881.0,0.06213]
[1765788498275,0.02762,89882.0,89881.0,0.06213]
[1765788498575,0.0561,89882.0,89881.0,0.06213]
[1765788514477,0.13622892,89882.0,89881.0,0.004]
[1765788514679,0.13622892,89882.0,89881.0,0.06168]
[1765788516190,0.0561,89882.0,89881.0,0.004]
[1765788522591,0.4169,89882.0,89881.0,0.004]
[1765788526604,0.0561,89882.0,89881.0,0.004]
[1765788526803,0.4169,89882.0,89881.0,0.004]
[1765788529806,0.4169,89882.0,89881.0,0.03324]
[1765788531406,0.4169,89882.0,89881.0,0.06168]
[1765788536213,0.4169,89882.0,89881.0,0.03324]
[1765788538007,0.4169,89882.0,89881.0,0.004]
[1765788541420,0.4169,89882.0,89881.0,0.03276]
[1765788542016,0.4169,89882.0,89881.0,0.06167]
[1765788542510,1.11166,89882.0,89881.0,0.06167]
[1765788544018,0.38842,89882.0,89881.0,0.06167]
[1765788544316,0.4162,89882.0,89881.0,0.06167]
[1765788545105,0.0554,89882.0,89881.0,0.06167]
[1765788545310,0.13553632,89882.0,89881.0,0.06167]
[1765788550120,0.0554,89882.0,89881.0,0.06167]
[1765788574430,0.072,89882.0,89881.0,0.06167]
[1765788579144,0.072,89882.0,89881.0,0.072796]
[1765788584650,0.0831259,89882.0,89881.0,0.072796]
[1765788584947,0.16327381,89882.0,89881.0,0.06167]
[1765788586938,0.16327381,89882.0,89881.0,0.004]
[1765788588149,0.16327381,89882.0,89881.0,0.03361]
[1765788588550,0.15214791,89882.0,89881.0,0.03361]
[1765788589147,0.15214791,89882.0,89881.0,0.06071]
[1765788598156,0.15214791,89882.0,89881.0,0.03361]
[1765788600258,0.15214791,89882.0,89881.0,0.004]
[1765788601349,0.15214791,89882.0,89881.0,0.05971]
[1765788602761,0.15214791,89882.0,89881.0,0.004]
[1765788603668,0.15214791,89882.0,89881.0,0.03162]
[1765788605569,0.15214791,89882.0,89881.0,0.05971]
[1765788607369,0.15214791,89882.0,89881.0,0.004]
[1765788608854,0.15214791,89882.0,89881.0,0.03162]
[1765788609260,0.15214791,89882.0,89881.0,0.05971]
[1765788611964,0.15214791,89882.0,89881.0,0.42051]
[1765788612159,0.01662683,89892.0,89887.0,0.05571]
[1765788612368,0.07475683,89892.0,89891.0,0.05571]
[1765788613471,0.07475683,89892.0,89891.0,0.06662277]
[1765788613866,0.15490474,89892.0,89891.0,0.06662277]
[1765788614369,0.07475683,89892.0,89891.0,0.06862277]
[1765788614576,0.07475683,89892.0,89891.0,0.05771]
[1765788615471,0.07475683,89892.0,89891.0,0.05871]
[1765788620575,0.00016683,89892.0,89891.0,0.41951]
[1765788620882,0.05829683,89892.0,89891.0,0.41951]
[1765788621581,0.05829683,89892.0,89891.0,0.41851]
[1765788621782,0.05829683,89892.0,89891.0,0.41951]
[1765788622180,0.05829683,89892.0,89891.0,0.41751]
[1765788622375,0.05829683,89892.0,89891.0,0.41951]
[1765788622578,0.00016683,89892.0,89891.0,0.41951]
[1765788622977,0.05829683,89892.0,89891.0,0.41951]
[1765788623688,0.07475683,89892.0,89891.0,0.41951]
[1765788631084,0.05143316,89898.0,89897.0,0.068554]
[1765788631287,0.05688,89912.0,89911.0,0.05743]
[1765788631489,0.05688,89902.0,89901.0,0.0685534]
[1765788631678,0.05688,89902.0,89901.0,0.4293534]
[1765788632180,0.05688,89902.0,89901.0,0.05743]
[1765788632494,0.05688,89902.0,89901.0,0.02849]
[1765788634190,0.05788,89902.0,89901.0,0.02849]
[1765788634590,0.05688,89902.0,89901.0,0.02849]
[1765788635096,0.05688,89902.0,89901.0,0.05843]
[1765788640496,0.02825,89902.0,89901.0,0.05843]
[1765788640795,0.05688,89902.0,89901.0,0.05843]
[1765788641190,0.05688,89902.0,89901.0,0.05943]
[1765788641395,0.05688,89902.0,89901.0,0.06043]
[1765788641893,0.05688,89902.0,89901.0,0.05843]
[1765788642194,0.05688,89902.0,89901.0,0.06043]
[1765788643293,0.05688,89902.0,89901.0,0.05943]
[1765788643994,0.05688,89902.0,89901.0,0.05843]
[1765788644195,0.05688,89902.0,89901.0,0.06043]
[1765788646395,0.05688,89902.0,89901.0,0.05843]
[1765788646595,0.05688,89902.0,89901.0,0.06043]
[1765788648009,0.05688,89902.0,89901.0,0.05843]
[1765788648199,0.05688,89902.0,89901.0,0.06043]
[1765788653503,0.05688,89902.0,89901.0,0.42123]
[1765788656295,0.05688,89902.0,89901.0,0.42023]
[1765788656607,0.05688,89902.0,89901.0,0.42123]
[1765788656909,0.05688,89902.0,89901.0,0.42023]
[1765788657211,0.05688,89902.0,89901.0,0.41923]
[1765788657393,0.05688,89902.0,89901.0,0.42123]
[1765788659695,0.05688,89902.0,89901.0,0.41823]
[1765788659898,0.05688,89902.0,89901.0,0.42123]
[1765788661513,0.05688,89902.0,89901.0,0.41923]
[1765788661817,0.05688,89902.0,89901.0,0.42123]
[1765788663112,0.05688,89902.0,89901.0,0.41923]
[1765788663305,0.05688,89902.0,89901.0,0.42123]
[1765788664712,0.05688,89902.0,89901.0,0.41923]
[1765788665010,0.05688,89902.0,89901.0,0.42123]
[1765788665514,0.05688,89902.0,89901.0,0.41923]
[1765788665805,0.05688,89902.0,89901.0,0.42123]
[1765788666612,0.05688,89902.0,89901.0,0.42023]
[1765788666804,0.05688,89902.0,89901.0,0.42123]
[1765788667607,0.05688,89902.0,89901.0,0.41923]
[1765788667799,0.05688,89902.0,89901.0,0.42123]
[1765788668413,0.05688,89902.0,89901.0,0.41923]
[1765788668613,0.05688,89902.0,89901.0,0.42123]
[1765788669513,0.05688,89902.0,89901.0,0.42023]
[1765788669816,0.05688,89902.0,89901.0,0.42123]
[1765788670614,0.05688,89902.0,89901.0,0.42023]
[1765788670814,0.05688,89902.0,89901.0,0.41923]
[1765788671016,0.05688,89902.0,89901.0,0.42123]
[1765788678327,0.05688,89902.0,89901.0,0.41923]
[1765788678527,0.05688,89902.0,89901.0,0.42123]
[1765788678728,0.05688,89902.0,89901.0,0.42023]
[1765788678913,0.05688,89902.0,89901.0,0.42123]
[1765788680424,0.05688,89902.0,89901.0,0.06043]
[1765788680725,0.05688,89902.0,89901.0,0.42123]
[1765788682023,0.0747,89902.0,89901.0,0.42123]
[1765788683926,0.0747,89902.0,89901.0,0.41923]
[1765788684223,0.0747,89902.0,89901.0,0.42123]
[1765788685618,0.0747,89902.0,89901.0,0.41923]
[1765788685819,0.0747,89902.0,89901.0,0.42123]
[1765788686020,0.15481406,89902.0,89901.0,0.42123]
[1765788686218,0.15481406,89902.0,89901.0,0.003]
[1765788686219,0.0747,89902.0,89901.0,0.003]
[1765788686421,0.0747,89902.0,89901.0,0.001]
[1765788686622,0.0747,89902.0,89901.0,0.06133]
[1765788686820,0.0747,89902.0,89901.0,0.003]
[1765788687219,0.0747,89902.0,89901.0,0.03029]
[1765788687422,0.0747,89902.0,89901.0,0.06107]
[1765788687823,0.0757,89902.0,89901.0,0.06007]
[1765788688225,0.0747,89902.0,89901.0,0.06007]
[1765788688427,0.0757,89902.0,89901.0,0.06007]
[1765788688930,0.0757,89902.0,89901.0,0.05907]
[1765788689130,0.0797,89902.0,89901.0,0.05907]
[1765788689725,0.0757,89902.0,89901.0,0.05907]
[1765788692833,0.0757,89902.0,89901.0,0.06007]
[1765788693926,0.15576106,89902.0,89901.0,0.06007]
[1765788694133,0.15476106,89902.0,89901.0,0.06007]
[1765788694627,0.0747,89902.0,89901.0,0.06007]
[1765788695025,0.15475919,89902.0,89901.0,0.06007]
[1765788698530,0.0747,89902.0,89901.0,0.0701935]
[1765788698730,0.0747,89902.0,89901.0,0.06007]
[1765788698932,0.15475919,89902.0,89901.0,0.06007]
[1765788699132,0.0747,89902.0,89901.0,0.06007]
[1765788704836,0.0747,89902.0,89901.0,0.05907]
[1765788705139,0.0747,89902.0,89901.0,0.06007]
[1765788707147,0.0747,89902.0,89901.0,0.0711935]
[1765788707333,0.17475337,89902.0,89901.0,0.0711935]
[1765788708346,0.17475337,89902.0,89901.0,0.0701935]
[1765788708534,0.17475337,89902.0,89901.0,0.0711935]
[1765788709044,0.19819875,89902.0,89901.0,0.001]
[1765788709236,0.19819875,89902.0,89901.0,0.0121235]
[1765788709632,0.17475337,89902.0,89901.0,0.0121235]
[1765788710035,0.0747,89902.0,89901.0,0.0121235]
[1765788714028,0.0747,89902.0,89901.0,0.001]
[1765788715328,0.07394,89900.0,89899.0,0.3719237]
[1765788717243,0.07394,89900.0,89899.0,0.3749237]
[1765788719144,0.07394,89900.0,89899.0,0.3638]
[1765788720242,0.07394,89900.0,89899.0,0.3628]
[1765788720448,0.07394,89900.0,89899.0,0.3638]
[1765788720638,0.07394,89900.0,89899.0,0.3618]
[1765788720838,0.07394,89900.0,89899.0,0.3628]
[1765788721038,0.07394,89900.0,89899.0,0.3638]
[1765788721449,0.07394,89900.0,89899.0,0.3618]
[1765788721637,0.07394,89900.0,89899.0,0.3638]
[1765788722233,0.07394,89900.0,89899.0,0.003]
[1765788723052,0.07394,89900.0,89899.0,0.002]
[1765788723746,0.05688,89894.0,89893.0,0.00016683]
[1765788725248,0.05688,89894.0,89893.0,0.00216683]
[1765788726350,0.05688,89894.0,89893.0,0.00316683]
[1765788728750,0.11695785,89894.0,89893.0,0.00316683]
[1765788729750,0.11695785,89894.0,89893.0,0.00116683]
[1765788729951,0.11695785,89894.0,89893.0,0.00316683]
[1765788730244,0.05688,89894.0,89893.0,0.00316683]
[1765788732250,0.05688,89894.0,89893.0,0.00216683]
[1765788732445,0.05688,89894.0,89893.0,0.00316683]
[1765788733353,0.05688,89894.0,89893.0,0.00116683]
[1765788733555,0.05688,89894.0,89893.0,0.00316683]
[1765788736562,0.0731,89894.0,89893.0,0.00316683]
[1765788739470,0.0731,89894.0,89893.0,0.00116683]
[1765788739670,0.0731,89894.0,89893.0,0.00316683]
[1765788740265,0.0731,89894.0,89893.0,0.00116683]
[1765788740465,0.0731,89894.0,89893.0,0.00316683]
[1765788743576,0.0731,89894.0,89893.0,0.36396683]
[1765788743877,0.13317785,89894.0,89893.0,0.36396683]
[1765788744377,0.13317785,89894.0,89893.0,0.36296683]
[1765788744675,0.13317785,89894.0,89893.0,0.36396683]
[1765788748682,0.13317785,89894.0,89893.0,0.36296683]
[1765788748981,0.13317785,89894.0,89893.0,0.36396683]
[1765788750481,0.13317785,89894.0,89893.0,0.36296683]
[1765788750685,0.13317785,89894.0,89893.0,0.36396683]
[1765788751380,0.0731,89894.0,89893.0,0.36396683]
[1765788751785,0.0731,89894.0,89893.0,0.00316683]
[1765788752585,0.13318604,89894.0,89893.0,0.00316683]
[1765788753686,0.13318604,89894.0,89893.0,0.00216683]
[1765788753889,0.0731,89894.0,89893.0,0.00316683]
[1765788757390,0.0731,89894.0,89893.0,0.00116683]
[1765788757591,0.0731,89894.0,89893.0,0.00316683]
[1765788757891,0.0731,89894.0,89893.0,0.00216683]
[1765788758192,0.0731,89894.0,89893.0,0.00116683]
[1765788758391,0.0842244,89894.0,89893.0,0.00316683]
[1765788758993,0.0842244,89894.0,89893.0,0.00116683]
[1765788759196,0.0842244,89894.0,89893.0,0.00316683]
[1765788759894,0.0842244,89894.0,89893.0,0.00216683]
[1765788760090,0.0842244,89894.0,89893.0,0.00316683]
[1765788760490,0.0842244,89894.0,89893.0,0.00116683]
[1765788760688,0.0731,89894.0,89893.0,0.00316683]
[1765788763398,0.0731,89894.0,89893.0,0.36396683]
[1765788773409,0.0731,89894.0,89893.0,0.00316683]
[1765788775410,0.0731,89894.0,89893.0,0.00016683]
[1765788775599,0.0731,89894.0,89893.0,0.00316683]
[1765788776001,0.05584,89891.0,89890.0,0.3608]
[1765788776706,0.0669659,89882.0,89881.0,0.13073941]
[1765788776902,0.07257,89880.0,89878.0,0.0111263]
[1765788779101,0.05836,89879.0,89878.0,0.0111263]
[1765788779312,0.05836,89879.0,89878.0,0.3719263]
[1765788780410,0.05836,89879.0,89878.0,0.3628]
[1765788781217,0.05836,89879.0,89878.0,0.3658]
[1765788795325,0.02936,89879.0,89878.0,0.3769264]
[1765788795518,0.01673,89880.0,89878.0,0.3769264]
[1765788795713,0.07509,89880.0,89878.0,0.3769264]
[1765788796109,0.0694862,89879.0,89878.0,0.3658]
[1765788797417,0.0694862,89879.0,89878.0,0.3628]
[1765788797618,0.0694862,89879.0,89878.0,0.3658]
[1765788797922,0.0694862,89879.0,89878.0,0.3638]
[1765788798225,0.0694862,89879.0,89878.0,0.3658]
[1765788799127,0.09294343,89879.0,89878.0,0.3658]
[1765788801523,0.09294343,89879.0,89878.0,0.005]
[1765788806518,0.09294343,89879.0,89878.0,0.0161264]
[1765788806725,0.09294343,89879.0,89878.0,0.005]
[1765788816139,0.08181723,89879.0,89878.0,0.005]
[1765788816732,0.08181723,89879.0,89878.0,0.3658]
[1765788816941,0.09294343,89879.0,89878.0,0.3658]
[1765788819950,0.08181723,89879.0,89878.0,0.3658]
[1765788821554,0.14191641,89879.0,89878.0,0.3658]
[1765788823046,0.14191641,89879.0,89878.0,0.005]
[1765788823244,0.14191641,89879.0,89878.0,0.3658]
[1765788823756,0.15304261,89879.0,89878.0,0.3658]
[1765788823956,0.09294343,89879.0,89878.0,0.3658]
[1765788825741,0.08181723,89879.0,89878.0,0.3658]
[1765788827645,0.14191403,89879.0,89878.0,0.3658]
[1765788829151,0.08181723,89879.0,89878.0,0.3658]
[1765788841358,0.08198254,89879.0,89878.0,0.3658]
[1765788859579,0.08198254,89879.0,89878.0,0.005]
[1765788864974,0.05836,89879.0,89878.0,0.005]
[1765788865178,0.08190972,89879.0,89878.0,0.005]
[1765788873094,0.08190926,89879.0,89878.0,0.005]
[1765788909992,0.14201373,89879.0,89878.0,0.005]
[1765788910296,0.02341397,89879.0,89878.0,0.005]
[1765788910695,0.05193397,89879.0,89878.0,0.005]
[1765788910900,0.08011397,89879.0,89878.0,0.005]
[1765788911100,0.02341397,89879.0,89878.0,0.055]
[1765788912195,0.02341397,89879.0,89878.0,0.005]
[1765788912393,0.02341397,89879.0,89878.0,0.045]
[1765788913107,0.02341397,89879.0,89878.0,0.055]
[1765788914298,0.02341397,89879.0,89878.0,0.74956]
[1765788917211,0.02341397,89879.0,89878.0,0.98956]
[1765788917519,0.02341397,89879.0,89878.0,0.73956]
[1765788919110,0.01673,89880.0,89879.0,0.0111262]
[1765788919304,0.01673,89880.0,89879.0,0.0611262]
[1765788919907,0.01673,89880.0,89879.0,1.5611262]
[1765788920308,0.01673,89880.0,89879.0,1.5641262]
[1765788920899,0.01673,89880.0,89879.0,1.8641262]
[1765788921100,0.01673,89880.0,89879.0,1.5541262]
[1765788921310,0.01673,89880.0,89879.0,1.5521262]
[1765788921506,0.01673,89880.0,89879.0,1.8661262]
[1765788921811,0.01673,89880.0,89879.0,1.5661262]
[1765788921997,0.01673,89880.0,89879.0,1.5651262]
[1765788922201,0.01673,89880.0,89879.0,1.5171262]
[1765788922411,0.01673,89880.0,89879.0,1.5671262]
[1765788925409,0.04525,89880.0,89879.0,1.5671262]
[1765788926116,0.07343,89880.0,89879.0,1.5671262]
[1765788927012,0.04624,89880.0,89879.0,1.5671262]
[1765788927213,0.04624,89880.0,89879.0,1.5631262]
[1765788927405,0.07431,89880.0,89879.0,2.2616062]
[1765788927606,0.07431,89880.0,89879.0,1.5671262]
[1765788927807,0.07431,89880.0,89879.0,2.2616062]
[1765788928116,0.07431,89880.0,89879.0,2.2596062]
[1765788928311,0.07431,89880.0,89879.0,2.2616062]
[1765788928514,0.04624,89880.0,89879.0,1.5671262]
[1765788928716,0.01673,89880.0,89879.0,1.5671262]
[1765788929016,0.01673,89880.0,89879.0,2.2616062]
[1765788929810,0.01673,89880.0,89879.0,2.2596062]
[1765788930015,0.01673,89880.0,89879.0,2.2616062]
[1765788934522,0.01673,89880.0,89879.0,2.9832062]
[1765788935320,0.07241,89880.0,89879.0,2.9832062]
[1765788936622,0.07241,89880.0,89879.0,2.9792062]
[1765788936918,0.07241,89880.0,89879.0,2.9822062]
[1765788937321,0.07241,89880.0,89879.0,2.92104]
[1765788937628,0.13251447,89880.0,89879.0,2.92104]
[1765788937830,0.13251447,89880.0,89879.0,2.91904]
[1765788938127,0.13251447,89880.0,89879.0,2.91804]
[1765788938324,0.13251447,89880.0,89879.0,2.2266]
[1765788938519,0.13251447,89880.0,89879.0,2.91904]
[1765788938714,0.13251447,89880.0,89879.0,2.92004]
[1765788938920,0.13251447,89880.0,89879.0,2.91704]
[1765788939226,0.13251447,89880.0,89879.0,2.91904]
[1765788939227,0.07241,89880.0,89879.0,2.91904]
[1765788940833,0.07241,89880.0,89879.0,2.55824]
[1765788944934,0.07241,89880.0,89879.0,1.8638]
[1765788945137,0.07241,89880.0,89879.0,2.55828]
[1765788945523,0.07241,89880.0,89879.0,2.19748]
[1765788945728,0.07241,89880.0,89879.0,2.55828]
[1765788951141,0.07241,89880.0,89879.0,1.8638]
[1765788951639,0.07241,89880.0,89879.0,0.003]
[1765788951640,0.43321,89880.0,89879.0,0.003]
[1765788951940,0.0846369,89874.0,89873.0,0.00016683]
[1765788952540,0.10794916,89874.0,89873.0,0.00016683]
[1765788953534,0.10794916,89874.0,89873.0,0.00216683]
[1765788953734,0.10794916,89874.0,89873.0,0.00516683]
[1765788956641,0.10794916,89874.0,89873.0,0.03442683]
[1765788956837,0.10794916,89874.0,89873.0,0.00516683]
[1765788957847,0.10794916,89874.0,89873.0,0.03257683]
[1765788958043,0.10794916,89874.0,89873.0,0.00516683]
[1765788962438,0.46874916,89874.0,89873.0,0.00516683]
[1765788965649,0.46874916,89874.0,89873.0,0.06052683]
[1765788966536,0.46874916,89874.0,89873.0,0.00516683]
[1765788967152,0.46874916,89874.0,89873.0,0.03257683]
[1765788967354,0.46874916,89874.0,89873.0,0.06052683]
[1765788967742,0.46874916,89874.0,89873.0,0.03257683]
[1765788968854,0.46874916,89874.0,89873.0,0.00516683]
[1765788972346,0.46874916,89874.0,89873.0,0.03257683]
[1765788973257,0.5286562,89874.0,89873.0,0.03257683]
[1765788973842,0.5286562,89874.0,89873.0,0.00516683]
[1765788975156,0.46874916,89874.0,89873.0,0.00516683]
[1765788981265,0.54875343,89874.0,89873.0,0.00516683]
[1765788982460,0.18795343,89874.0,89873.0,0.00516683]
[1765788982766,0.10794916,89874.0,89873.0,0.06052683]
[1765788983360,0.10794916,89874.0,89873.0,1.56052683]
[1765788985373,0.10794916,89874.0,89873.0,0.06052683]
[1765788987857,0.09682226,89874.0,89873.0,0.06052683]
[1765788998080,0.09682226,89874.0,89873.0,0.42132683]
[1765788998574,0.09682226,89874.0,89873.0,0.06052683]
[1765788998778,0.15685637,89874.0,89873.0,0.00516683]
[1765789004284,0.09682226,89874.0,89873.0,0.00516683]
[1765789004784,0.15686801,89874.0,89873.0,0.00516683]
[1765789005286,0.09682226,89874.0,89873.0,0.00516683]
[1765789009786,0.09682226,89874.0,89873.0,0.03294683]
[1765789012786,0.09682226,89874.0,89873.0,0.00516683]
[1765789021398,0.09682226,89874.0,89873.0,0.06326683]
[1765789032395,0.09682226,89874.0,89873.0,0.00516683]
[1765789039206,0.07351,89874.0,89873.0,0.00516683]
[1765789051114,0.07351,89874.0,89858.0,0.01335455]
[1765789051115,0.02771,89867.0,89858.0,0.00222575]
[1765789051305,0.0681287,89859.0,89858.0,0.00222575]
[1765789052501,0.0681293,89854.0,89850.0,0.00016693]
[1765789052706,0.0681293,89854.0,89853.0,1.73976682]
[1765789053806,0.0691293,89854.0,89853.0,1.73976682]
[1765789071337,0.4299293,89854.0,89853.0,1.73976682]
[1765789073841,0.51004583,89854.0,89853.0,0.17678432]
[1765789074048,0.51004583,89854.0,89837.0,0.3608]
[1765789074049,0.0681322,89831.0,89830.0,0.1878207]
[1765789074239,0.0681322,89831.0,89830.0,0.057]
[1765789075232,0.0681322,89831.0,89830.0,0.059]
[1765789076043,0.0681322,89831.0,89830.0,0.06]
[1765789076240,0.12803842,89831.0,89830.0,0.06]
[1765789076546,0.0681322,89831.0,89830.0,0.06]
[1765789084251,0.12814308,89831.0,89830.0,0.06]
[1765789088358,0.07114308,89831.0,89830.0,0.06]
[1765789089155,0.0111322,89831.0,89830.0,0.06]
[1765789089851,0.1144522,89831.0,89830.0,0.06]
[1765789091153,0.2220722,89831.0,89830.0,0.06]
[1765789093455,0.28208308,89831.0,89830.0,0.06]
[1765789094360,0.2220722,89831.0,89830.0,0.06]
[1765789097261,0.2220722,89831.0,89830.0,0.03132]
[1765789097656,0.2220722,89831.0,89830.0,0.13139]
[1765789099364,0.24555185,89831.0,89830.0,0.13139]
[1765789100368,0.23441965,89831.0,89830.0,0.13139]
[1765789108960,0.21094,89831.0,89830.0,0.13139]
[1765789109161,0.23445375,89831.0,89830.0,0.13139]
[1765789115676,0.21916375,89831.0,89830.0,0.13139]
[1765789118482,0.02351375,89831.0,89830.0,0.13139]
[1765789118777,0.06011483,89831.0,89830.0,0.13139]
[1765789118963,0.08362858,89831.0,89830.0,0.13139]
[1765789119664,0.02351375,89831.0,89830.0,0.13139]
[1765789125080,0.28682309,89839.0,89838.0,0.1951013]
[1765789125275,0.31032079,89839.0,89838.0,0.1951013]
[1765789125471,0.21931463,89839.0,89838.0,0.1951013]
[1765789126181,0.20835983,89839.0,89838.0,0.1951013]
[1765789127483,0.20835983,89839.0,89838.0,0.1961013]
[1765789129884,0.0234977,89839.0,89838.0,0.2074013]
[1765789130179,0.1210877,89839.0,89838.0,0.2074013]
[1765789130685,0.2191477,89839.0,89838.0,0.2074013]
[1765789133288,0.2191477,89839.0,89838.0,0.2064013]
[1765789133586,0.2191477,89839.0,89838.0,0.2074013]
[1765789133978,0.0234977,89839.0,89838.0,0.2074013]
[1765789134289,0.2191477,89839.0,89838.0,0.2074013]
[1765789138488,0.2191477,89839.0,89838.0,0.001]
[1765789139090,0.2191477,89839.0,89838.0,0.08643]
[1765789140088,0.2191477,89839.0,89838.0,0.08543]
[1765789140392,0.2191477,89839.0,89838.0,0.08643]
[1765789141292,0.2191477,89839.0,89838.0,0.001]
[1765789149597,0.29902266,89839.0,89838.0,0.001]
[1765789149802,0.2191477,89839.0,89838.0,0.001]
[1765789150502,0.21806101,89839.0,89838.0,0.001]
[1765789153208,0.57886101,89839.0,89838.0,0.001]
[1765789163909,0.57886101,89839.0,89838.0,0.08167]
[1765789164307,0.57886101,89839.0,89838.0,0.00194222]
[1765789164513,0.1754023,89830.0,89829.0,0.28854317]
[1765789164809,0.25550823,89830.0,89829.0,0.15765]
[1765789165805,0.25550823,89830.0,89829.0,0.15965]
[1765789166015,0.25550823,89830.0,89829.0,0.16165]
[1765789167909,0.1754023,89830.0,89829.0,0.16165]
[1765789168514,0.25552564,89830.0,89829.0,0.16165]
[1765789169313,0.1754023,89830.0,89829.0,0.16165]
[1765789179718,0.2253223,89830.0,89829.0,0.16165]
[1765789183918,0.2253223,89830.0,89829.0,0.004]
[1765789184118,0.3054596,89830.0,89829.0,0.004]
[1765789185120,0.2253223,89830.0,89829.0,0.004]